bitfinex-derivatives/quotes_BTCF0:USTF0_20240905
["timestamp","ask_amount","ask_price","bid_price","bid_amount"]
[1725510387402,0.06265055,57260.0,57258.0,0.061123]
[1725510387599,0.06265055,57260.0,57258.0,0.161123]
[1725510388602,0.1,57263.0,57258.0,0.161123]
[1725510388805,0.00126204,57259.0,57258.0,0.162123]
[1725510389309,0.00126204,57259.0,57258.0,0.062123]
[1725510390114,0.00226204,57259.0,57258.0,0.063123]
[1725510391413,0.00226204,57259.0,57258.0,0.08367555]
[1725510394500,0.06491259,57259.0,57258.0,0.08367555]
[1725510395913,0.06491259,57259.0,57258.0,0.44447555]
[1725510397112,0.06194055,57259.0,57258.0,0.50559855]
[1725510397417,0.06194055,57259.0,57258.0,1.62951855]
[1725510397609,0.061103,57277.0,57271.0,0.061109]
[1725510397810,0.061104,57276.0,57271.0,0.061109]
[1725510399018,0.302104,57276.0,57271.0,0.062109]
[1725510399202,0.302104,57276.0,57271.0,0.063109]
[1725510400519,0.06263285,57275.0,57271.0,0.063109]
[1725510400717,0.06263285,57274.0,57271.0,0.063109]
[1725510401011,0.302104,57276.0,57271.0,0.063109]
[1725510401012,0.06263285,57273.0,57272.0,0.061108]
[1725510402503,0.06263285,57275.0,57272.0,0.061108]
[1725510402709,0.06263285,57275.0,57272.0,0.063108]
[1725510403218,0.06263285,57275.0,57274.0,0.301106]
[1725510403709,0.00026204,57279.0,57278.0,0.061102]
[1725510403910,0.00026204,57279.0,57278.0,0.301102]
[1725510404315,0.00026204,57279.0,57278.0,0.348202]
[1725510405117,0.00026204,57279.0,57278.0,0.349202]
[1725510405315,0.00026204,57279.0,57278.0,0.350202]
[1725510405732,0.00026204,57279.0,57278.0,0.349202]
[1725510406010,0.00026204,57279.0,57278.0,0.350202]
[1725510406320,0.00026204,57279.0,57278.0,0.37160178]
[1725510407015,0.00026204,57279.0,57278.0,1.49536178]
[1725510409528,0.06289489,57279.0,57278.0,1.49536178]
[1725510409913,0.13457941,57279.0,57278.0,1.30974561]
[1725510410328,0.06289489,57279.0,57278.0,1.30974561]
[1725510410620,0.06289489,57279.0,57278.0,1.37084761]
[1725510413931,0.02562439,57279.0,57278.0,1.43194961]
[1725510414119,0.07168452,57285.0,57284.0,0.061096]
[1725510414322,0.07168452,57287.0,57285.0,0.24]
[1725510414632,0.27901687,57292.0,57291.0,0.061088]
[1725510414820,0.27901687,57292.0,57291.0,0.52942161]
[1725510414821,0.35064908,57292.0,57291.0,0.52942161]
[1725510415216,0.07163221,57292.0,57291.0,0.52942161]
[1725510415421,0.27901687,57295.0,57294.0,0.061085]
[1725510415621,0.27901687,57295.0,57294.0,0.301085]
[1725510416015,0.00026204,57297.0,57296.0,0.061083]
[1725510417224,0.06286327,57297.0,57296.0,0.061083]
[1725510417625,0.00026204,57297.0,57296.0,0.062083]
[1725510418623,0.00026204,57297.0,57296.0,0.063083]
[1725510421320,0.00026204,57297.0,57296.0,0.062083]
[1725510421533,0.00026204,57297.0,57296.0,0.063083]
[1725510421921,0.00026204,57297.0,57296.0,0.08410276]
[1725510425729,0.00026204,57297.0,57296.0,0.08581276]
[1725510429126,0.06134404,57297.0,57296.0,0.02472976]
[1725510430527,0.66214404,57297.0,57296.0,0.00371]
[1725510430751,0.78475277,57297.0,57296.0,0.00371]
[1725510431041,0.84583477,57297.0,57296.0,0.00371]
[1725510431925,1.96943477,57297.0,57296.0,0.00371]
[1725510432535,2.0410772,57297.0,57296.0,0.00371]
[1725510437143,2.4018772,57297.0,57296.0,0.00371]
[1725510439535,2.4018772,57297.0,57281.0,0.3608]
[1725510439536,0.061092,57287.0,57281.0,0.3608]
[1725510439738,0.301092,57287.0,57286.0,0.02080434]
[1725510440042,0.301092,57287.0,57286.0,0.00026204]
[1725510441044,0.301092,57287.0,57286.0,0.00326204]
[1725510441742,0.301092,57287.0,57286.0,0.0244779]
[1725510442048,0.301092,57287.0,57286.0,0.00526204]
[1725510442938,0.301092,57287.0,57286.0,0.00226204]
[1725510443259,0.301092,57287.0,57286.0,0.00326204]
[1725510443552,0.301092,57287.0,57286.0,0.02416945]
[1725510443733,0.301092,57287.0,57286.0,0.00326204]
[1725510446044,0.161092,57287.0,57286.0,0.00326204]
[1725510448846,0.061092,57287.0,57286.0,0.00326204]
[1725510449043,0.161092,57287.0,57286.0,0.00326204]
[1725510449451,0.061092,57287.0,57286.0,0.00326204]
[1725510449639,0.161092,57287.0,57286.0,0.00326204]
[1725510449838,0.251092,57287.0,57286.0,0.00326204]
[1725510450339,0.31370897,57287.0,57286.0,0.00326204]
[1725510456050,0.061097,57283.0,57281.0,0.02137535]
[1725510456348,0.061103,57277.0,57274.0,0.107606]
[1725510456551,0.161103,57277.0,57274.0,0.107606]
[1725510457151,0.161103,57277.0,57274.0,0.207606]
[1725510457748,0.161103,57277.0,57274.0,0.1465]
[1725510457949,0.161103,57277.0,57274.0,0.0465]
[1725510458251,0.147103,57277.0,57276.0,0.06942554]
[1725510458655,0.21071997,57277.0,57276.0,0.06942554]
[1725510459157,0.20971997,57277.0,57276.0,0.06942554]
[1725510459459,0.21071997,57277.0,57276.0,0.06942554]
[1725510459662,0.21471997,57277.0,57276.0,0.06942554]
[1725510460857,0.21371997,57277.0,57276.0,0.02052554]
[1725510461052,0.061105,57275.0,57274.0,0.0465]
[1725510461252,0.22372197,57275.0,57274.0,0.0465]
[1725510462054,0.22372197,57275.0,57274.0,0.06743211]
[1725510462254,0.22572197,57275.0,57274.0,0.06743211]
[1725510462654,0.167105,57275.0,57274.0,0.06743211]
[1725510472968,0.167105,57275.0,57274.0,0.06914211]
[1725510483367,0.167105,57275.0,57274.0,0.13024811]
[1725510483771,0.006,57275.0,57274.0,0.13024811]
[1725510484066,0.00026181,57282.0,57281.0,0.061099]
[1725510485171,0.00926181,57282.0,57281.0,0.062099]
[1725510485674,0.01826181,57282.0,57281.0,0.063099]
[1725510485879,0.08088001,57282.0,57281.0,0.063099]
[1725510486365,0.18088001,57282.0,57281.0,0.063099]
[1725510486972,0.18088001,57282.0,57281.0,0.08356985]
[1725510491164,0.11826181,57282.0,57281.0,0.08356985]
[1725510494868,0.01826181,57282.0,57281.0,0.18356985]
[1725510507487,0.08088001,57282.0,57281.0,0.18356985]
[1725510507694,0.08088001,57282.0,57281.0,0.54436985]
[1725510514582,0.01826181,57282.0,57281.0,0.54436985]
[1725510515188,0.11826181,57282.0,57281.0,0.44436985]
[1725510515595,0.11826181,57282.0,57281.0,0.08356985]
[1725510516986,0.01826181,57282.0,57281.0,0.08356985]
[1725510517187,0.01826181,57282.0,57281.0,0.44436985]
[1725510520099,0.01826181,57282.0,57281.0,0.44607985]
[1725510522587,0.15252524,57282.0,57281.0,0.08527985]
[1725510524795,0.15252524,57282.0,57281.0,0.44607985]
[1725510528992,0.15252524,57282.0,57281.0,0.38498085]
[1725510529596,0.08088001,57282.0,57281.0,0.38498085]
[1725510529902,0.01826181,57282.0,57281.0,0.44607985]
[1725510540206,0.01826181,57282.0,57281.0,0.54607985]
[1725510540828,0.01826181,57282.0,57281.0,0.18527985]
[1725510544604,0.08088001,57282.0,57281.0,0.18527985]
[1725510546109,0.08088001,57282.0,57281.0,0.54607985]
[1725510547113,0.08088001,57282.0,57281.0,0.02218085]
[1725510547317,0.08088001,57282.0,57269.0,0.3608]
[1725510547318,0.061102,57278.0,57269.0,0.3608]
[1725510547512,0.1,57273.0,57272.0,0.061108]
[1725510547814,0.23426343,57273.0,57272.0,0.061108]
[1725510548720,0.13426343,57273.0,57272.0,0.061108]
[1725510549011,0.0626182,57273.0,57272.0,0.061108]
[1725510549720,0.0636182,57273.0,57272.0,0.061108]
[1725510552610,0.001,57273.0,57272.0,0.110508]
[1725510554016,0.001,57273.0,57272.0,0.471308]
[1725510558513,0.00026181,57282.0,57281.0,0.061099]
[1725510558724,0.00026181,57282.0,57281.0,0.421899]
[1725510559614,0.00026181,57282.0,57281.0,0.422899]
[1725510559615,0.06988001,57282.0,57281.0,0.422899]
[1725510560023,0.07488001,57282.0,57281.0,0.423899]
[1725510567128,0.07488001,57282.0,57281.0,0.44702117]
[1725510567722,0.01226181,57282.0,57281.0,0.54702117]
[1725510571631,0.06585029,57282.0,57281.0,0.54702117]
[1725510573231,0.06584985,57282.0,57281.0,0.54702117]
[1725510574736,0.12846805,57282.0,57281.0,0.54702117]
[1725510575344,0.12846748,57282.0,57281.0,0.54702117]
[1725510577240,0.18956548,57282.0,57281.0,0.54702117]
[1725510579148,0.18956548,57282.0,57281.0,0.48592217]
[1725510579450,0.18956548,57282.0,57281.0,0.38592217]
[1725510582647,0.12694728,57282.0,57281.0,0.38592217]
[1725510583644,0.12694728,57282.0,57281.0,0.48592217]
[1725510584835,0.06584928,57282.0,57281.0,0.48592217]
[1725510585040,0.06584928,57282.0,57281.0,0.54702117]
[1725510586645,0.01226181,57282.0,57281.0,0.44702117]
[1725510586847,0.06584953,57282.0,57281.0,0.44702117]
[1725510589158,0.06584953,57282.0,57281.0,0.08622117]
[1725510589361,0.06584953,57282.0,57281.0,0.44702117]
[1725510589548,0.16584953,57282.0,57281.0,0.44702117]
[1725510591156,0.16584953,57282.0,57281.0,0.08622117]
[1725510591347,0.16584953,57282.0,57281.0,0.44702117]
[1725510592247,0.16584953,57282.0,57281.0,0.08622117]
[1725510592554,0.16584953,57282.0,57281.0,0.44702117]
[1725510596350,0.16584953,57282.0,57281.0,0.08622117]
[1725510596555,0.06584953,57282.0,57281.0,0.44702117]
[1725510597849,0.20011369,57282.0,57281.0,0.08622117]
[1725510598045,0.20011369,57282.0,57281.0,0.44702117]
[1725510598859,0.2001135,57282.0,57281.0,0.44702117]
[1725510600455,0.11306825,57282.0,57281.0,1.57074117]
[1725510600653,0.11306825,57282.0,57281.0,1.02034117]
[1725510601560,0.11306825,57282.0,57281.0,2.52034117]
[1725510601955,0.33998498,57282.0,57281.0,2.52034117]
[1725510602460,0.33997719,57282.0,57281.0,2.52034117]
[1725510602657,0.33997719,57282.0,57281.0,2.62034117]
[1725510602852,0.11306046,57282.0,57281.0,2.62034117]
[1725510603164,0.33991197,57282.0,57281.0,2.62034117]
[1725510603555,0.33991197,57282.0,57281.0,1.12034117]
[1725510604759,0.28043125,57282.0,57281.0,1.12034117]
[1725510604964,0.05357974,57282.0,57281.0,0.23582117]
[1725510605170,0.05357974,57282.0,57281.0,0.95742117]
[1725510606259,0.02842685,57282.0,57281.0,0.95742117]
[1725510606460,0.05357944,57286.0,57281.0,0.89632217]
[1725510606666,0.05357944,57285.0,57281.0,0.79632217]
[1725510606960,0.05357944,57284.0,57281.0,0.79632217]
[1725510607264,0.05357944,57283.0,57282.0,0.122196]
[1725510607462,0.00026181,57287.0,57286.0,0.061093]
[1725510607659,0.05384078,57287.0,57286.0,0.521893]
[1725510609059,0.15384078,57287.0,57281.0,0.02512217]
[1725510609369,0.15384078,57287.0,57281.0,0.001]
[1725510609370,1.705716,57282.0,57281.0,0.001]
[1725510609557,1.705716,57282.0,57271.0,0.00026181]
[1725510609558,0.69285969,57282.0,57271.0,0.00026181]
[1725510609757,0.521909,57272.0,57269.0,0.022977]
[1725510609959,0.521909,57272.0,57259.0,0.421922]
[1725510609960,0.1,57270.0,57259.0,0.3608]
[1725510610169,0.1,57260.0,57259.0,0.3608]
[1725510610464,0.15357897,57260.0,57259.0,0.3608]
[1725510610668,0.05357897,57260.0,57259.0,0.3608]
[1725510610861,0.05357897,57260.0,57259.0,0.48408979]
[1725510611367,0.05357897,57260.0,57259.0,0.48508979]
[1725510612555,0.04957897,57260.0,57259.0,0.48508979]
[1725510612756,0.05974253,57265.0,57259.0,0.48508979]
[1725510612971,0.05974253,57265.0,57264.0,0.3608]
[1725510613158,0.22685151,57270.0,57264.0,0.3608]
[1725510613459,0.05948072,57270.0,57269.0,0.4598]
[1725510613663,0.1,57273.0,57269.0,0.4598]
[1725510614060,0.24,57275.0,57269.0,0.3598]
[1725510614269,0.008,57270.0,57269.0,0.3598]
[1725510614462,0.01,57270.0,57269.0,0.3598]
[1725510615565,0.01,57270.0,57269.0,0.38297205]
[1725510615760,0.002,57270.0,57269.0,0.38297205]
[1725510616160,0.013,57273.0,57269.0,0.38397205]
[1725510616567,0.002,57273.0,57269.0,0.38397205]
[1725510616759,0.011,57270.0,57269.0,0.38397205]
[1725510616959,0.013,57270.0,57269.0,0.38397205]
[1725510617174,0.013,57270.0,57269.0,0.36649205]
[1725510617367,0.002,57270.0,57269.0,0.36649205]
[1725510617558,0.05359932,57270.0,57269.0,0.36649205]
[1725510617968,0.05359932,57270.0,57269.0,0.42760405]
[1725510619165,0.06459932,57270.0,57269.0,0.42860405]
[1725510619868,0.012,57270.0,57269.0,0.42860405]
[1725510622673,0.001,57270.0,57269.0,0.42760405]
[1725510622874,0.007,57270.0,57269.0,0.42860405]
[1725510623074,0.006,57270.0,57269.0,0.42860405]
[1725510623273,0.007,57270.0,57269.0,0.42860405]
[1725510623573,0.013,57270.0,57269.0,0.42860405]
[1725510623769,0.012,57270.0,57269.0,0.42760405]
[1725510624081,0.012,57270.0,57269.0,0.42860405]
[1725510624082,0.013,57270.0,57269.0,0.42860405]
[1725510627868,0.013,57270.0,57269.0,0.08628405]
[1725510628071,0.06659833,57270.0,57269.0,0.08628405]
[1725510631582,0.06659833,57270.0,57269.0,0.32628405]
[1725510632078,0.06659872,57270.0,57269.0,0.32628405]
[1725510634771,0.12922795,57270.0,57269.0,0.32628405]
[1725510635982,0.12722795,57270.0,57269.0,0.32628405]
[1725510637979,0.12722795,57270.0,57269.0,0.18628405]
[1725510638474,0.19888808,57270.0,57269.0,0.18628405]
[1725510639988,0.12722795,57270.0,57269.0,0.18628405]
[1725510640486,0.19888808,57270.0,57269.0,0.18628405]
[1725510641481,0.19888808,57270.0,57269.0,0.08628405]
[1725510641878,0.06459872,57270.0,57269.0,0.08628405]
[1725510645782,0.16459872,57270.0,57269.0,0.02517205]
[1725510646689,0.22570872,57270.0,57269.0,0.02517205]
[1725510649787,0.35999808,57270.0,57269.0,0.02517205]
[1725510652389,0.36000296,57270.0,57269.0,0.02517205]
[1725510654693,0.28834283,57270.0,57269.0,0.02517205]
[1725510654987,0.36000296,57270.0,57269.0,0.02517205]
[1725510655582,0.63930805,57270.0,57269.0,0.02517205]
[1725510656480,0.36000296,57270.0,57269.0,0.02517205]
[1725510656988,0.28834283,57270.0,57269.0,0.02517205]
[1725510657685,0.2257136,57270.0,57269.0,0.02517205]
[1725510659994,0.0646036,57270.0,57269.0,0.02517205]
[1725510660304,0.061137,57245.0,57244.0,0.00088]
[1725510660483,0.8752036,57245.0,57239.0,0.00088]
[1725510660684,0.8752036,57245.0,57229.0,0.0451]
[1725510660685,0.4608,57240.0,57229.0,0.0451]
[1725510660904,0.3608,57230.0,57229.0,0.0451]
[1725510661092,0.57703283,57230.0,57223.0,0.25037761]
[1725510661287,0.1,57226.0,57225.0,0.061158]
[1725510661481,0.1536036,57226.0,57225.0,0.061158]
[1725510661690,0.0536036,57226.0,57225.0,0.061158]
[1725510661887,0.3608,57230.0,57225.0,0.061158]
[1725510661888,0.0536036,57227.0,57225.0,0.061158]
[1725510662289,0.0536036,57226.0,57225.0,0.061158]
[1725510662489,0.0536036,57228.0,57225.0,0.066158]
[1725510662692,0.0536036,57227.0,57225.0,0.066158]
[1725510662889,0.0396036,57226.0,57225.0,0.066158]
[1725510663093,0.24,57229.0,57225.0,0.066158]
[1725510663493,0.24,57229.0,57225.0,0.071158]
[1725510664097,0.24,57229.0,57225.0,0.066158]
[1725510664296,0.001,57227.0,57225.0,0.066158]
[1725510664497,0.3618,57227.0,57225.0,0.066158]
[1725510664692,0.3618,57227.0,57225.0,0.061158]
[1725510664998,0.3618,57227.0,57225.0,0.066158]
[1725510665592,0.3608,57227.0,57225.0,0.005]
[1725510666503,0.3608,57227.0,57223.0,0.27321209]
[1725510666699,0.3618,57227.0,57223.0,0.27321209]
[1725510667300,0.3628,57227.0,57223.0,0.27321209]
[1725510667703,0.3618,57227.0,57223.0,0.24821209]
[1725510668414,0.3618,57227.0,57223.0,0.48821209]
[1725510668701,0.3608,57227.0,57223.0,0.46421209]
[1725510669600,0.3608,57227.0,57223.0,0.52537209]
[1725510670906,0.3608,57227.0,57224.0,1.5]
[1725510671497,0.3608,57227.0,57223.0,0.52537209]
[1725510671909,0.3608,57227.0,57223.0,2.02537209]
[1725510672097,0.3608,57227.0,57223.0,0.52537209]
[1725510676705,0.061153,57230.0,57224.0,0.06116]
[1725510676907,0.3608,57227.0,57224.0,0.06116]
[1725510678806,0.3608,57227.0,57225.0,0.061158]
[1725510679910,0.061153,57230.0,57225.0,0.061158]
[1725510680108,0.3608,57227.0,57225.0,0.061158]
[1725510681707,0.3608,57227.0,57226.0,0.061157]
[1725510682218,0.3608,57227.0,57226.0,0.301157]
[1725510682406,0.00026207,57231.0,57230.0,0.061153]
[1725510682710,0.00026207,57231.0,57230.0,0.301153]
[1725510682908,0.00026207,57231.0,57230.0,1.801153]
[1725510684917,0.66221407,57231.0,57226.0,0.061157]
[1725510685109,0.66221407,57231.0,57226.0,0.08411844]
[1725510686006,0.42221407,57231.0,57227.0,0.24]
[1725510686203,0.36106207,57231.0,57229.0,0.24]
[1725510686403,0.36106207,57231.0,57229.0,0.301154]
[1725510687610,0.05363472,57230.0,57229.0,0.301154]
[1725510687815,0.11630647,57230.0,57229.0,0.301154]
[1725510689220,0.05363472,57230.0,57229.0,0.301154]
[1725510691011,0.0536341,57230.0,57229.0,0.301154]
[1725510692516,1.4178341,57230.0,57226.0,0.02296144]
[1725510692713,1.4178341,57230.0,57220.0,0.00026207]
[1725510692714,0.061157,57226.0,57220.0,0.00026207]
[1725510692918,0.6008,57221.0,57220.0,0.02298184]
[1725510693115,0.71710585,57221.0,57220.0,0.00026207]
[1725510693321,0.71710585,57221.0,57211.0,0.02272663]
[1725510693322,1.84138585,57221.0,57211.0,0.02272663]
[1725510693511,0.6008,57212.0,57211.0,0.061173]
[1725510693716,0.71710585,57212.0,57211.0,0.061173]
[1725510694715,0.6008,57212.0,57211.0,0.061173]
[1725510697315,0.6008,57212.0,57207.0,0.07071576]
[1725510697524,0.6008,57212.0,57207.0,0.13189376]
[1725510698228,0.6008,57212.0,57208.0,0.061176]
[1725510698438,0.3608,57212.0,57210.0,0.24]
[1725510698623,0.3608,57212.0,57211.0,0.061173]
[1725510703237,0.3608,57212.0,57211.0,0.301173]
[1725510706640,0.661972,57212.0,57207.0,0.02281576]
[1725510706830,0.05365376,57211.0,57206.0,0.00026207]
[1725510707033,0.05365376,57210.0,57209.0,0.061176]
[1725510707431,0.05365376,57211.0,57209.0,0.061176]
[1725510707638,0.05365376,57210.0,57209.0,0.061176]
[1725510707936,0.60268001,57212.0,57210.0,0.061175]
[1725510707937,0.05365745,57211.0,57210.0,0.061175]
[1725510709130,0.05292289,57211.0,57210.0,0.061175]
[1725510709532,0.41372289,57211.0,57210.0,0.061175]
[1725510709742,0.3608,57211.0,57210.0,0.061175]
[1725510712833,0.3608,57211.0,57210.0,0.301175]
[1725510715040,0.3608,57211.0,57207.0,0.24]
[1725510715442,0.3608,57211.0,57207.0,0.301177]
[1725510715946,0.3608,57211.0,57208.0,0.061176]
[1725510717938,0.3608,57209.0,57208.0,0.061176]
[1725510718843,0.3608,57211.0,57208.0,0.061176]
[1725510720937,0.061172,57212.0,57208.0,0.061176]
[1725510721146,0.4144561,57211.0,57208.0,0.061176]
[1725510721343,0.0536561,57210.0,57208.0,0.061176]
[1725510721540,0.3608,57211.0,57208.0,0.061176]
[1725510721738,0.0536561,57210.0,57208.0,0.061176]
[1725510721940,0.3608,57211.0,57209.0,0.061176]
[1725510722136,0.05365601,57210.0,57209.0,0.061176]
[1725510722444,0.05365601,57210.0,57208.0,0.0477]
[1725510722646,0.05365601,57209.0,57208.0,0.0477]
[1725510723143,0.05365601,57210.0,57208.0,0.108876]
[1725510723340,0.05365601,57209.0,57208.0,0.108876]
[1725510729644,0.06269577,57210.0,57209.0,0.061176]
[1725510729849,0.11635004,57210.0,57209.0,0.301176]
[1725510730049,0.11635004,57210.0,57209.0,0.161176]
[1725510732857,0.05365427,57210.0,57209.0,0.161176]
[1725510733951,0.05365427,57210.0,57209.0,0.061176]
[1725510738752,0.05365427,57210.0,57209.0,0.161176]
[1725510738960,0.061178,57207.0,57206.0,0.01824469]
[1725510739173,0.061178,57207.0,57184.0,0.05248471]
[1725510739174,0.1,57193.0,57191.0,0.061195]
[1725510739361,0.1,57192.0,57185.0,0.1078]
[1725510739548,0.1,57189.0,57187.0,0.1]
[1725510739755,0.05366691,57188.0,57187.0,0.1]
[1725510740352,0.21638372,57189.0,57187.0,0.1]
[1725510740655,0.05366691,57188.0,57187.0,0.1]
[1725510741558,0.11638372,57189.0,57187.0,0.1]
[1725510741858,0.05366691,57188.0,57187.0,0.1]
[1725510742056,0.05366691,57188.0,57186.0,0.2488976]
[1725510742250,0.05366691,57187.0,57186.0,0.2488976]
[1725510742451,0.11638372,57189.0,57186.0,0.2488976]
[1725510744252,0.19172418,57187.0,57186.0,0.2488976]
[1725510744458,0.05367488,57187.0,57186.0,0.2488976]
[1725510744660,0.19171359,57187.0,57186.0,0.2488976]
[1725510744858,0.19171359,57188.0,57186.0,0.2488976]
[1725510745057,0.05367488,57187.0,57186.0,0.1795976]
[1725510745958,0.11639169,57189.0,57186.0,0.1795976]
[1725510746360,0.24528559,57189.0,57186.0,0.1795976]
[1725510746560,0.3080024,57189.0,57186.0,0.1795976]
[1725510747167,0.24528559,57189.0,57186.0,0.1795976]
[1725510747567,0.05367488,57188.0,57186.0,0.1795976]
[1725510747768,0.3608,57189.0,57186.0,0.1795976]
[1725510750464,0.6008,57189.0,57185.0,0.07942136]
[1725510751662,0.6008,57189.0,57186.0,0.0612]
[1725510751864,0.2851,57195.0,57186.0,0.24]
[1725510752074,0.3608,57196.0,57192.0,0.24]
[1725510752763,0.3608,57196.0,57192.0,0.301194]
[1725510753267,0.3608,57196.0,57192.0,0.825754]
[1725510753565,0.3608,57196.0,57192.0,1.425754]
[1725510754864,0.05392796,57193.0,57192.0,1.425754]
[1725510759273,0.05392796,57193.0,57192.0,1.44420649]
[1725510759577,0.05392618,57193.0,57192.0,1.44420649]
[1725510760865,0.05392618,57193.0,57192.0,0.07964649]
[1725510761065,0.65472618,57193.0,57192.0,0.01845249]
[1725510761278,0.65472618,57193.0,57188.0,0.24]
[1725510761279,0.47743435,57193.0,57188.0,0.24]
[1725510761471,0.11637228,57192.0,57191.0,0.24]
[1725510761879,0.11637228,57192.0,57191.0,0.1908]
[1725510762083,0.11637228,57192.0,57191.0,0.1]
[1725510762981,0.05366411,57192.0,57191.0,0.161195]
[1725510764377,0.36106207,57193.0,57192.0,0.061194]
[1725510764576,0.41473561,57193.0,57192.0,0.061194]
[1725510768467,0.41473561,57193.0,57192.0,0.0766898]
[1725510768866,0.41473561,57193.0,57192.0,0.0154958]
[1725510769072,0.41473561,57193.0,57192.0,0.1]
[1725510769073,0.41473632,57193.0,57192.0,0.1]
[1725510769772,0.36106207,57193.0,57192.0,0.1]
[1725510769974,0.36106207,57193.0,57192.0,0.161194]
[1725510773173,0.00026207,57193.0,57192.0,0.161194]
[1725510773380,0.3608,57198.0,57197.0,0.061188]
[1725510773575,0.3608,57198.0,57197.0,0.161188]
[1725510773983,0.41446795,57198.0,57197.0,0.161188]
[1725510774180,0.41446795,57198.0,57197.0,0.061188]
[1725510775484,0.41446795,57198.0,57197.0,0.161188]
[1725510775996,0.41446795,57198.0,57197.0,0.17657474]
[1725510776577,0.3608,57198.0,57197.0,0.17657474]
[1725510776981,0.3608,57198.0,57197.0,0.07657474]
[1725510777176,0.3608,57198.0,57197.0,0.17657474]
[1725510777979,0.47717592,57198.0,57197.0,0.17657474]
[1725510778785,0.47717592,57198.0,57197.0,0.01538674]
[1725510778786,0.57717592,57198.0,57197.0,0.01538674]
[1725510779089,0.57717592,57198.0,57195.0,0.06119]
[1725510779283,0.1,57196.0,57192.0,0.10026207]
[1725510779592,0.05366675,57195.0,57192.0,0.10026207]
[1725510779779,0.05366675,57194.0,57192.0,0.10026207]
[1725510779981,0.05366675,57193.0,57192.0,0.10026207]
[1725510780182,0.05366675,57193.0,57192.0,0.11565797]
[1725510782485,0.41446675,57193.0,57192.0,0.11565797]
[1725510782685,0.4771804,57193.0,57192.0,0.01565797]
[1725510782889,0.5771804,57193.0,57192.0,0.01565797]
[1725510783584,0.6071804,57193.0,57192.0,0.01565797]
[1725510783895,0.6683734,57193.0,57192.0,0.01565797]
[1725510786890,0.66837648,57193.0,57192.0,0.01565797]
[1725510787590,0.61470217,57193.0,57192.0,0.01565797]
[1725510787785,0.66837728,57193.0,57192.0,0.01565797]
[1725510792493,1.19293728,57193.0,57192.0,0.01565797]
[1725510792689,1.79293828,57193.0,57192.0,0.01565797]
[1725510794198,1.13174528,57193.0,57184.0,0.10871297]
[1725510794395,0.4608,57187.0,57184.0,0.10871297]
[1725510794593,0.11638528,57186.0,57184.0,0.10871297]
[1725510794797,0.05367611,57185.0,57184.0,0.18498453]
[1725510795700,0.05367611,57185.0,57184.0,0.17627156]
[1725510800503,0.05367611,57186.0,57184.0,0.17627156]
[1725510800703,0.05367611,57185.0,57184.0,0.17627156]
[1725510800902,0.05367611,57186.0,57184.0,0.17627156]
[1725510801204,0.05367611,57185.0,57184.0,0.17627156]
[1725510801507,0.0536772,57186.0,57185.0,0.061201]
[1725510801702,0.053678,57186.0,57185.0,0.161201]
[1725510802305,0.22827979,57186.0,57185.0,0.161201]
[1725510802606,0.22827811,57186.0,57185.0,0.161201]
[1725510802798,0.22827785,57186.0,57185.0,0.061201]
[1725510803103,0.05367632,57186.0,57185.0,0.161201]
[1725510804099,0.22827818,57186.0,57185.0,0.161201]
[1725510804609,0.05367632,57186.0,57185.0,0.161201]
[1725510804801,0.22829383,57186.0,57185.0,0.161201]
[1725510805202,0.22830983,57186.0,57185.0,0.161201]
[1725510805803,0.22831233,57186.0,57185.0,0.161201]
[1725510806000,0.05367632,57186.0,57185.0,0.161201]
[1725510807700,0.3608,57187.0,57186.0,0.0612]
[1725510807899,0.41447601,57187.0,57186.0,0.0612]
[1725510808207,0.477196,57187.0,57186.0,0.0612]
[1725510809007,0.116396,57187.0,57186.0,0.0612]
[1725510812296,0.116396,57187.0,57185.0,0.1]
[1725510812297,0.05367458,57187.0,57185.0,0.1]
[1725510812513,0.05367458,57186.0,57185.0,0.161201]
[1725510812697,0.06271999,57189.0,57188.0,0.061198]
[1725510812901,0.16639704,57189.0,57188.0,0.061198]
[1725510814110,0.16639704,57189.0,57188.0,0.161198]
[1725510814897,0.10367705,57189.0,57188.0,0.161198]
[1725510817704,0.05367705,57189.0,57188.0,0.161198]
[1725510818705,0.05367705,57189.0,57188.0,0.061198]
[1725510818901,0.15367705,57189.0,57188.0,0.061198]
[1725510819504,0.32854875,57189.0,57188.0,0.061198]
[1725510820413,0.18367705,57189.0,57188.0,0.061198]
[1725510822909,0.2463961,57189.0,57188.0,0.061198]
[1725510823517,0.1463961,57189.0,57188.0,0.061198]
[1725510824107,0.08367705,57189.0,57188.0,0.061198]
[1725510827917,0.0836747,57189.0,57188.0,0.061198]
[1725510829915,0.25856504,57189.0,57188.0,0.061198]
[1725510831911,0.0836747,57189.0,57188.0,0.061198]
[1725510832415,0.0836747,57189.0,57188.0,0.161198]
[1725510832810,0.08367405,57189.0,57188.0,0.161198]
[1725510834615,0.22237937,57189.0,57188.0,0.161198]
[1725510834922,0.27605342,57189.0,57188.0,0.161198]
[1725510835816,0.08367405,57189.0,57188.0,0.161198]
[1725510837823,0.08367273,57189.0,57188.0,0.161198]
[1725510838020,0.05367273,57189.0,57188.0,0.161198]
[1725510838431,0.05367273,57189.0,57188.0,1.707796]
[1725510838432,0.10899545,57189.0,57188.0,1.707796]
[1725510838723,0.17488133,57194.0,57193.0,0.061193]
[1725510838920,0.0536596,57194.0,57193.0,0.521993]
[1725510839223,0.3608,57211.0,57193.0,1.58532]
[1725510839224,0.2024028,57210.0,57193.0,1.58532]
[1725510839425,0.05365765,57209.0,57208.0,0.061177]
[1725510840428,0.05365765,57209.0,57208.0,0.161177]
[1725510845223,0.11635269,57209.0,57208.0,0.161177]
[1725510845423,0.05365765,57209.0,57208.0,0.161177]
[1725510846243,0.11635269,57209.0,57208.0,0.161177]
[1725510846534,0.05365765,57209.0,57208.0,0.161177]
[1725510847034,0.06269504,57210.0,57209.0,0.061176]
[1725510847235,0.11635086,57210.0,57209.0,0.061176]
[1725510849125,0.11635086,57210.0,57209.0,0.161176]
[1725510851041,0.11635164,57210.0,57209.0,0.161176]
[1725510852233,0.47715164,57210.0,57209.0,0.161176]
[1725510853145,0.5856326,57210.0,57208.0,0.02065922]
[1725510853337,0.1967566,57209.0,57208.0,0.02065922]
[1725510853543,0.3167566,57209.0,57208.0,0.02065922]
[1725510853844,0.8411566,57209.0,57208.0,0.02065922]